bitfinex/quotes_BTCUSD_20241003
["timestamp","ask_amount","ask_price","bid_price","bid_amount"]
[1727924015423,0.162952,61368.0,61366.0,0.24504799]
[1727924015637,0.00354164,61367.0,61364.0,0.162961]
[1727924016782,0.00354164,61367.0,61363.0,0.407428]
[1727924016993,0.00354164,61367.0,61365.0,0.162959]
[1727924018379,0.00354164,61367.0,61365.0,0.163959]
[1727924018597,0.00354164,61367.0,61366.0,0.40800399]
[1727924018808,0.00354164,61367.0,61366.0,0.58490399]
[1727924019035,0.000818,61371.0,61370.0,0.162946]
[1727924019471,0.00435632,61371.0,61370.0,0.162946]
[1727924019690,0.000818,61371.0,61370.0,0.162946]
[1727924020134,0.00436287,61371.0,61370.0,0.162946]
[1727924020690,0.00436287,61371.0,61370.0,0.239346]
[1727924021098,0.000818,61371.0,61370.0,0.239346]
[1727924021531,0.003818,61371.0,61370.0,0.239346]
[1727924021752,0.000818,61371.0,61370.0,0.239346]
[1727924022921,0.000818,61371.0,61370.0,0.242346]
[1727924023401,0.000818,61371.0,61370.0,0.244346]
[1727924027737,0.000818,61371.0,61370.0,0.342046]
[1727924032784,0.02636369,61371.0,61370.0,0.342046]
[1727924033044,0.02636369,61371.0,61370.0,0.343682]
[1727924034122,0.000818,61371.0,61370.0,0.343682]
[1727924036985,0.02636356,61371.0,61370.0,0.343682]
[1727924039662,0.000818,61371.0,61370.0,0.343682]
[1727924041445,0.000818,61371.0,61370.0,0.245982]
[1727924041896,0.163761,61371.0,61370.0,0.083036]
[1727924042116,0.000818,61371.0,61370.0,0.083036]
[1727924042334,0.17911579,61371.0,61370.0,0.083036]
[1727924042797,0.01617279,61371.0,61370.0,0.080036]
[1727924043227,0.01617279,61371.0,61370.0,0.078036]
[1727924043646,0.01717279,61371.0,61370.0,0.078036]
[1727924044138,0.04271967,61371.0,61370.0,0.078036]
[1727924046533,0.04271967,61371.0,61370.0,0.079036]
[1727924046749,0.04271967,61371.0,61370.0,0.241982]
[1727924046963,0.04171967,61371.0,61370.0,0.241982]
[1727924047177,0.02636488,61371.0,61370.0,0.339482]
[1727924047615,0.02636488,61371.0,61370.0,0.338482]
[1727924048068,0.02636488,61371.0,61370.0,0.341482]
[1727924048529,0.02636488,61371.0,61370.0,0.343482]
[1727924049247,0.000818,61371.0,61370.0,0.343482]
[1727924050737,0.000818,61371.0,61370.0,0.083036]
[1727924050964,0.163761,61371.0,61370.0,0.083036]
[1727924051206,0.17911305,61371.0,61370.0,0.083036]
[1727924051449,0.17911305,61371.0,61370.0,0.006636]
[1727924051950,0.27911305,61371.0,61370.0,0.006636]
[1727924052215,0.30466209,61371.0,61370.0,0.006636]
[1727924052746,0.30466209,61371.0,61370.0,0.003636]
[1727924052984,0.30466209,61371.0,61370.0,0.001636]
[1727924053247,0.40796209,61371.0,61370.0,0.002636]
[1727924053511,0.262956,61366.0,61365.0,0.001636]
[1727924053772,0.54476685,61366.0,61365.0,0.001636]
[1727924054011,0.40010871,61366.0,61365.0,0.001636]
[1727924054485,0.42310871,61366.0,61365.0,0.001636]
[1727924054747,0.57168035,61366.0,61365.0,0.001636]
[1727924055302,0.42510871,61366.0,61365.0,0.001636]
[1727924056044,0.43210871,61366.0,61365.0,0.002636]
[1727924056259,0.43410871,61366.0,61365.0,0.002636]
[1727924056479,0.42510871,61366.0,61365.0,0.001636]
[1727924056739,0.43010871,61366.0,61365.0,0.002636]
[1727924056988,0.43910871,61366.0,61365.0,0.003636]
[1727924057479,0.43010871,61366.0,61365.0,0.002636]
[1727924057966,0.42510871,61366.0,61365.0,0.001636]
[1727924058198,0.43710871,61366.0,61365.0,0.001636]
[1727924058451,0.55912057,61366.0,61365.0,0.001636]
[1727924058692,0.43510871,61366.0,61365.0,0.001636]
[1727924058941,0.38552592,61366.0,61365.0,0.002636]
[1727924059196,0.36062231,61366.0,61365.0,0.002636]
[1727924059398,0.35162231,61366.0,61365.0,0.001636]
[1727924059616,0.35162231,61366.0,61365.0,0.002636]
[1727924059617,0.33622205,61366.0,61365.0,0.002636]
[1727924060067,0.3527742,61366.0,61365.0,0.001636]
[1727924060492,0.31298572,61366.0,61365.0,0.002636]
[1727924060706,0.05002972,61366.0,61365.0,0.002636]
[1727924061143,0.31298572,61366.0,61365.0,0.002636]
[1727924061787,0.31798572,61366.0,61365.0,0.001636]
[1727924061997,0.31798572,61366.0,61365.0,0.082436]
[1727924061998,0.15002972,61366.0,61365.0,0.082436]
[1727924062211,0.31298572,61366.0,61365.0,0.082436]
[1727924062422,0.32398572,61366.0,61365.0,0.002636]
[1727924064805,0.06211865,61366.0,61365.0,0.002636]
[1727924065241,0.32507465,61366.0,61365.0,0.002636]
[1727924067704,0.2995225,61366.0,61365.0,0.002636]
[1727924068148,0.1365665,61366.0,61365.0,0.002636]
[1727924070776,0.16211661,61366.0,61365.0,0.002636]
[1727924071425,0.06211661,61366.0,61365.0,0.002636]
[1727924072108,0.06211661,61366.0,61365.0,0.165595]
[1727924074477,0.06211661,61366.0,61365.0,0.41064299]
[1727924074712,0.06211661,61366.0,61365.0,0.248595]
[1727924074968,0.04555011,61366.0,61365.0,0.248595]
[1727924075210,0.06144089,61366.0,61365.0,0.248595]
[1727924075448,0.03589078,61366.0,61365.0,0.248595]
[1727924076210,0.02,61366.0,61365.0,0.72331331]
[1727924076464,0.02,61366.0,61365.0,0.47826532]
[1727924077210,0.009,61366.0,61365.0,0.47826532]
[1727924077907,0.009,61366.0,61365.0,0.344095]
[1727924078146,0.000818,61370.0,61369.0,0.238448]
[1727924078623,0.02636577,61370.0,61369.0,0.231448]
[1727924079094,0.02636577,61370.0,61369.0,0.0755]
[1727924079329,0.02736577,61370.0,61369.0,0.0755]
[1727924079557,0.04328032,61370.0,61369.0,0.0755]
[1727924079769,0.04328032,61370.0,61369.0,0.0805]
[1727924079986,0.04228032,61370.0,61369.0,0.0805]
[1727924081121,0.04228032,61370.0,61369.0,0.0755]
[1727924081309,0.04228032,61370.0,61369.0,0.0765]
[1727924081768,0.04228032,61370.0,61369.0,0.238448]
[1727924082267,0.04228032,61370.0,61369.0,0.241448]
[1727924082702,0.04728032,61370.0,61369.0,0.238448]
[1727924082914,0.04228032,61370.0,61369.0,0.238448]
[1727924083128,0.04228032,61370.0,61369.0,0.243448]
[1727924084063,0.02636577,61370.0,61369.0,0.243448]
[1727924085586,0.02636577,61370.0,61369.0,0.0805]
[1727924085805,0.04231376,61370.0,61369.0,0.0805]
[1727924086051,0.04231376,61370.0,61369.0,0.243448]
[1727924086920,0.01676599,61370.0,61369.0,0.243448]
[1727924090056,0.04231343,61370.0,61369.0,0.243448]
[1727924092914,0.01676599,61370.0,61369.0,0.46845432]
[1727924093131,0.000818,61370.0,61369.0,0.46845432]
[1727924093571,0.000818,61370.0,61369.0,0.42257928]
[1727924095600,0.000818,61370.0,61369.0,0.46829483]
[1727924100247,0.000818,61370.0,61369.0,0.48641561]
[1727924100498,0.000818,61370.0,61369.0,0.46829483]
[1727924101276,0.000818,61370.0,61369.0,0.335284]
[1727924102176,0.000818,61370.0,61369.0,0.46829483]
[1727924103175,0.000818,61370.0,61369.0,0.335284]
[1727924103448,0.000818,61370.0,61369.0,0.082136]
[1727924103707,0.01681757,61370.0,61369.0,0.082136]
[1727924104178,0.01681757,61370.0,61369.0,0.077136]
[1727924104414,0.17976357,61370.0,61369.0,0.001636]
[1727924104644,0.17976357,61370.0,61369.0,0.003636]
[1727924105117,0.17976357,61370.0,61369.0,0.001636]
[1727924105340,0.17976357,61370.0,61369.0,0.002636]
[1727924106788,0.17976357,61370.0,61369.0,0.001636]
[1727924107023,0.18676357,61370.0,61369.0,0.001636]
[1727924107261,0.21431289,61370.0,61369.0,0.001636]
[1727924107503,0.21231289,61370.0,61369.0,0.001636]
[1727924107725,0.20531289,61370.0,61369.0,0.001636]
[1727924107976,0.18176357,61370.0,61369.0,0.001636]
[1727924109298,0.18776357,61370.0,61369.0,0.001636]
[1727924110838,0.02481757,61370.0,61369.0,0.242484]
[1727924111255,0.01927849,61370.0,61369.0,0.242484]
[1727924111466,0.00666766,61370.0,61369.0,0.242484]
[1727924111678,0.00866766,61370.0,61369.0,0.242484]
[1727924111890,0.00866766,61370.0,61369.0,0.37875338]
[1727924112144,0.00866766,61370.0,61369.0,0.37549483]
[1727924112784,0.00266766,61370.0,61369.0,0.37549483]
[1727924112996,0.00566766,61370.0,61369.0,0.37549483]
[1727924113466,0.00066766,61370.0,61369.0,0.079536]
[1727924113688,0.00166766,61370.0,61369.0,0.242484]
[1727924113914,0.00366766,61370.0,61369.0,0.242484]
[1727924114151,0.01994992,61370.0,61369.0,0.242484]
[1727924114365,0.00066766,61370.0,61369.0,0.335284]
[1727924114620,0.00066766,61370.0,61369.0,0.343284]
[1727924114827,0.00166766,61370.0,61369.0,0.343284]
[1727924115245,0.00166766,61370.0,61369.0,0.335284]
[1727924115871,0.00166766,61370.0,61369.0,0.345284]
[1727924116085,0.00066766,61370.0,61369.0,0.345284]
[1727924116293,0.00166766,61370.0,61369.0,0.347284]
[1727924116705,0.00066766,61370.0,61369.0,0.345284]
[1727924117135,0.00166766,61370.0,61369.0,0.337284]
[1727924117350,0.02621238,61370.0,61369.0,0.335284]
[1727924117560,0.02621238,61370.0,61369.0,0.345284]
[1727924117767,0.02721238,61370.0,61369.0,0.347284]
[1727924118000,0.02721238,61370.0,61369.0,0.337284]
[1727924118216,0.02721238,61370.0,61369.0,0.347284]
[1727924118657,0.02721238,61370.0,61369.0,0.337284]
[1727924119091,0.02621238,61370.0,61369.0,0.346284]
[1727924119524,0.02721238,61370.0,61369.0,0.347284]
[1727924120836,0.00166766,61370.0,61369.0,0.347284]
[1727924124334,0.02721121,61370.0,61369.0,0.347284]
[1727924124561,0.02721121,61370.0,61369.0,0.51047071]
[1727924124847,0.02721121,61370.0,61369.0,0.52851147]
[1727924127184,0.02721121,61370.0,61369.0,0.51047071]
[1727924131039,0.00166766,61370.0,61369.0,0.51047071]
[1727924131250,0.00166766,61370.0,61369.0,0.52848562]
[1727924131459,0.00166766,61370.0,61369.0,0.51047071]
[1727924132943,0.00166766,61370.0,61369.0,0.347284]
[1727924135421,0.0272113,61370.0,61369.0,0.347284]
[1727924138026,0.0272113,61370.0,61369.0,0.254484]
[1727924139268,0.00166766,61370.0,61369.0,0.254484]
[1727924142309,0.02721262,61370.0,61369.0,0.254484]
[1727924144000,0.02721262,61370.0,61369.0,0.25530709]
[1727924144464,0.02721262,61370.0,61369.0,0.254484]
[1727924149571,0.02721262,61370.0,61369.0,0.34177394]
[1727924151467,0.00166766,61370.0,61369.0,0.34177394]
[1727924155960,0.0272121,61370.0,61369.0,0.34177394]
[1727924159684,0.0272121,61370.0,61369.0,0.254484]
[1727924160143,0.0272121,61370.0,61369.0,0.176584]
[1727924160372,0.0272121,61370.0,61369.0,0.013636]
[1727924160818,0.01798371,61370.0,61369.0,0.176584]
[1727924161716,0.18101366,61370.0,61369.0,0.013636]
[1727924161928,0.27887507,61370.0,61369.0,0.013636]
[1727924162143,0.31965861,61370.0,61369.0,0.013636]
[1727924162364,0.29513966,61370.0,61369.0,0.013636]
[1727924162825,0.29413966,61370.0,61369.0,0.012636]
[1727924163091,0.30113966,61370.0,61369.0,0.001636]
[1727924163306,0.20330722,61370.0,61369.0,0.001636]
[1727924163522,0.20630722,61370.0,61369.0,0.001636]
[1727924163961,0.30220136,61370.0,61369.0,0.001636]
[1727924164186,0.28580136,61370.0,61369.0,0.001636]
[1727924164420,0.04951102,61370.0,61369.0,0.001636]
[1727924164628,0.04951102,61370.0,61369.0,0.164584]
[1727924164839,0.02696122,61370.0,61369.0,0.164584]
[1727924165050,0.01066766,61370.0,61369.0,0.164584]
[1727924165695,0.00366766,61370.0,61369.0,0.164584]
[1727924166139,0.00566766,61370.0,61369.0,0.164584]
[1727924166364,0.00066766,61370.0,61369.0,0.164584]
[1727924166591,0.00466766,61370.0,61369.0,0.61592903]
[1727924166838,0.00466766,61370.0,61369.0,0.63058618]
[1727924167060,0.000817,61375.0,61374.0,0.60033884]
[1727924167274,0.000817,61375.0,61374.0,0.83014488]
[1727924167495,0.000817,61375.0,61374.0,0.78144102]
[1727924168211,0.000817,61375.0,61374.0,0.84490941]
[1727924168432,0.000817,61375.0,61374.0,0.81410355]
[1727924169084,0.001817,61375.0,61374.0,0.82410355]
[1727924169310,0.000817,61375.0,61374.0,0.81410355]
[1727924169736,0.001817,61375.0,61374.0,0.82410355]
[1727924169953,0.001817,61375.0,61374.0,0.83810355]
[1727924170165,0.00175111,61375.0,61374.0,0.83810355]
[1727924170377,0.00175111,61375.0,61374.0,0.82410355]
[1727924170598,0.00175111,61375.0,61374.0,0.83810355]
[1727924171527,0.00175111,61375.0,61374.0,0.83810823]
[1727924171716,0.00175111,61375.0,61374.0,0.83610823]
[1727924171998,0.00175111,61375.0,61374.0,0.83810823]
[1727924172433,0.00175111,61375.0,61374.0,0.82810823]
[1727924172434,0.00075111,61375.0,61374.0,0.82810823]
[1727924172647,0.00075111,61375.0,61374.0,0.81410823]
[1727924172864,0.00175111,61375.0,61374.0,0.83710823]
[1727924173335,0.00175111,61375.0,61374.0,0.81920555]
[1727924173575,0.00175111,61375.0,61374.0,0.81720555]
[1727924174029,0.00175111,61375.0,61374.0,0.81920555]
[1727924174548,0.00175111,61375.0,61374.0,0.81720555]
[1727924174991,0.00175111,61375.0,61374.0,0.81920555]
[1727924175510,0.02728904,61375.0,61374.0,0.81920555]
[1727924177449,0.02728904,61375.0,61374.0,0.84649455]
[1727924182891,0.00175111,61375.0,61374.0,0.84649455]
[1727924185553,0.00175111,61375.0,61374.0,0.84449455]
[1727924186047,0.00175111,61375.0,61374.0,0.82149455]
[1727924187895,0.00175111,61375.0,61374.0,1.08954254]
[1727924188109,0.00175111,61375.0,61374.0,1.09154254]
[1727924188314,0.00175111,61375.0,61374.0,0.84649455]
[1727924189952,0.00175111,61375.0,61374.0,0.84449455]
[1727924192325,0.00175111,61375.0,61374.0,0.86433405]
[1727924192540,0.02728954,61375.0,61374.0,0.86433405]
[1727924192666,0.02728954,61375.0,61374.0,0.86233405]
[1727924192865,0.00175111,61375.0,61374.0,0.86233405]
[1727924194741,0.00175111,61375.0,61374.0,0.67614734]
[1727924195382,0.00175111,61375.0,61374.0,0.85692139]
[1727924195801,0.00175111,61375.0,61374.0,0.85892139]
[1727924196525,0.00175111,61375.0,61374.0,0.91006113]
[1727924196907,0.00175111,61375.0,61374.0,0.91169713]
[1727924197812,0.00175111,61375.0,61374.0,0.91181918]
[1727924198224,0.00175111,61375.0,61374.0,0.84813055]
[1727924198434,0.00175111,61375.0,61374.0,0.91203931]
[1727924201907,0.02728949,61375.0,61374.0,0.91203931]
[1727924202349,0.00175111,61375.0,61374.0,0.91203931]
[1727924204578,0.00175111,61375.0,61374.0,0.91205465]
[1727924205286,0.02728961,61375.0,61374.0,0.91205465]
[1727924205496,0.02728961,61375.0,61374.0,0.91005465]
[1727924206353,0.00175111,61375.0,61374.0,0.91005465]
[1727924209629,0.00175111,61375.0,61374.0,0.88205465]
[1727924209840,0.00175111,61375.0,61374.0,0.75996744]
[1727924210067,0.00175111,61375.0,61374.0,0.75496744]
[1727924210966,0.00175111,61375.0,61374.0,0.71933055]
[1727924211176,0.00175111,61375.0,61374.0,0.78368899]
[1727924211385,0.00175111,61375.0,61374.0,0.78868899]
[1727924211603,0.00175111,61375.0,61374.0,0.48739844]
[1727924211811,0.00175111,61375.0,61374.0,0.59821328]
[1727924213296,0.00175111,61375.0,61374.0,0.6954274]
[1727924214897,0.00175111,61375.0,61374.0,0.69583972]
[1727924215099,0.00175111,61375.0,61374.0,0.81054633]
[1727924215316,0.00175111,61375.0,61374.0,0.68851328]
[1727924215543,0.00175111,61375.0,61374.0,0.64266241]
[1727924215752,0.00175111,61375.0,61374.0,0.74028944]
[1727924215960,0.00175111,61375.0,61374.0,0.64266241]
[1727924216167,0.00175111,61375.0,61374.0,0.74029289]
[1727924216580,0.00175111,61375.0,61374.0,0.73529289]
[1727924216882,0.00175111,61375.0,61374.0,0.4497787]
[1727924217077,0.00175111,61375.0,61374.0,0.40095549]
[1727924217517,0.00175111,61375.0,61374.0,0.32545549]
[1727924217959,0.00175111,61375.0,61374.0,0.30750397]
[1727924218144,0.00175111,61375.0,61374.0,0.32538024]
[1727924220754,0.00175111,61375.0,61374.0,0.32537523]
[1727924221178,0.00175111,61375.0,61374.0,0.7132854]
[1727924221391,0.00175111,61375.0,61374.0,0.92066344]
[1727924221610,0.00175111,61375.0,61374.0,0.94306601]
[1727924222224,0.00175111,61375.0,61374.0,0.94506601]
[1727924223592,0.00175111,61375.0,61374.0,0.99074973]
[1727924223816,0.00175111,61375.0,61374.0,0.98874973]
[1727924224040,0.00175111,61375.0,61374.0,0.86671668]
[1727924225034,0.00175111,61375.0,61374.0,0.98866595]
[1727924225308,0.00175111,61375.0,61374.0,0.86871668]
[1727924226976,0.00175111,61375.0,61374.0,0.86895163]
[1727924227916,0.0492271,61392.0,61391.0,0.24339]
[1727924228194,0.0492271,61392.0,61391.0,0.37632669]
[1727924228432,0.000817,61396.0,61391.0,0.37632669]
[1727924228433,0.000817,61396.0,61395.0,0.162879]
[1727924228672,0.000817,61396.0,61395.0,0.16613624]
[1727924229701,0.000817,61396.0,61395.0,0.54412092]
[1727924229938,0.000817,61396.0,61395.0,0.29581569]
[1727924230631,0.000817,61396.0,61395.0,0.30481569]
[1727924230870,0.000817,61396.0,61395.0,0.29581569]
[1727924231096,0.000817,61396.0,61395.0,0.56686368]
[1727924231330,0.000817,61396.0,61395.0,0.39961569]
[1727924232330,0.02635128,61396.0,61395.0,0.39961569]
[1727924232560,0.000817,61396.0,61395.0,0.39961569]
[1727924232816,0.000817,61396.0,61395.0,0.64466368]
[1727924233531,0.000817,61396.0,61395.0,0.39961569]
[1727924233776,0.000817,61396.0,61395.0,0.32181569]
[1727924234748,0.000817,61396.0,61395.0,0.188879]
[1727924235479,0.000817,61396.0,61395.0,0.43392699]
[1727924235722,0.000817,61396.0,61395.0,0.32181569]
[1727924236011,0.000817,61396.0,61395.0,0.56851316]
[1727924236263,0.000817,61396.0,61395.0,0.64696368]
[1727924237464,0.000817,61396.0,61395.0,0.40191569]
[1727924241227,0.02635022,61396.0,61395.0,0.40191569]
[1727924241713,0.000817,61396.0,61395.0,0.40191569]
[1727924242403,0.000817,61396.0,61395.0,0.188879]
[1727924243178,0.000817,61396.0,61395.0,0.162879]
[1727924243454,0.000817,61396.0,61395.0,0.180879]
[1727924243680,0.000817,61396.0,61395.0,0.172879]
[1727924243914,0.000817,61396.0,61395.0,0.171879]
[1727924244167,0.000817,61396.0,61395.0,0.183879]
[1727924245792,0.000817,61396.0,61395.0,0.18538866]
[1727924246301,0.000817,61396.0,61395.0,0.183879]
[1727924249795,0.000817,61396.0,61395.0,0.27109682]
[1727924250762,0.000817,61396.0,61395.0,0.27311863]
[1727924251263,0.02635079,61396.0,61395.0,0.27311863]
[1727924251516,0.02635079,61396.0,61395.0,0.27109682]
[1727924252739,0.02635079,61396.0,61395.0,0.44539682]
[1727924252984,0.02635079,61396.0,61395.0,0.69044481]
[1727924253226,0.02635079,61396.0,61395.0,0.44539682]
[1727924256001,0.02635079,61396.0,61395.0,0.35079682]
[1727924256254,0.02635079,61396.0,61395.0,0.61381984]
[1727924257030,0.02635079,61396.0,61395.0,0.36877185]
[1727924258692,0.02635079,61396.0,61395.0,0.36876843]
[1727924261393,0.02635079,61396.0,61395.0,0.35079682]
[1727924263625,0.18922779,61396.0,61395.0,0.021]
[1727924264128,0.20907436,61396.0,61395.0,0.021]
[1727924264899,0.29629218,61396.0,61395.0,0.021]
[1727924265142,0.31647436,61396.0,61395.0,0.021]
[1727924265808,0.15359736,61396.0,61385.0,0.40795399]
[1727924266064,0.162895,61389.0,61385.0,0.40795399]
[1727924266825,0.18843201,61389.0,61385.0,0.40795399]
[1727924267065,0.18843201,61389.0,61385.0,0.40995399]
[1727924267299,0.18843201,61389.0,61386.0,0.162903]
[1727924267970,0.00593543,61388.0,61386.0,0.162903]
[1727924268842,0.00593543,61388.0,61386.0,0.170903]
[1727924269056,0.01383663,61387.0,61386.0,0.170903]
[1727924269282,0.01383663,61387.0,61386.0,0.173903]
[1727924269511,0.00592476,61387.0,61386.0,0.182903]
[1727924269948,0.00592476,61387.0,61386.0,0.171903]
[1727924271118,0.00592476,61387.0,61386.0,0.162903]
[1727924271539,0.01185469,61387.0,61386.0,0.162903]
[1727924271812,0.01185469,61387.0,61386.0,0.174903]
[1727924272036,0.01185469,61387.0,61386.0,0.022]
[1727924274695,0.01185469,61387.0,61385.0,0.162906]
[1727924274910,0.01185469,61387.0,61386.0,0.01]
[1727924275131,0.01185469,61387.0,61386.0,0.022]
[1727924275811,0.01185469,61387.0,61386.0,0.01]
[1727924276710,0.17475469,61387.0,61386.0,0.01]
[1727924276940,0.26955469,61387.0,61386.0,0.01]
[1727924277162,0.17475469,61387.0,61386.0,0.01]
[1727924277865,0.162916,61381.0,61380.0,0.27772799]
[1727924278319,0.16882703,61381.0,61380.0,0.27772799]
[1727924278579,0.19436661,61381.0,61380.0,0.27772799]
[1727924278798,0.03145061,61381.0,61380.0,0.27772799]
[1727924279023,0.03145061,61381.0,61379.0,0.001636]
[1727924279243,0.03145061,61381.0,61380.0,0.06068]
[1727924279921,0.19436661,61381.0,61380.0,0.06068]
[1727924280616,0.19436661,61381.0,61380.0,0.028]
[1727924280847,0.19436661,61381.0,61380.0,0.014]
[1727924281292,0.03145061,61381.0,61379.0,0.015636]
[1727924281512,0.03145061,61381.0,61379.0,0.029636]
[1727924281714,0.19436861,61381.0,61379.0,0.001636]
[1727924282418,0.19436861,61381.0,61380.0,0.014]
[1727924282650,0.19436861,61381.0,61380.0,0.028]
[1727924282877,0.19436861,61381.0,61380.0,0.014]
[1727924283979,0.19436861,61381.0,61379.0,0.015636]
[1727924284193,0.20027761,61381.0,61379.0,0.029636]
[1727924284642,0.03735961,61381.0,61379.0,0.029636]
[1727924284873,0.162919,61380.0,61379.0,0.029636]
[1727924285087,0.162919,61380.0,61379.0,0.001636]
[1727924285308,0.01179542,61380.0,61379.0,0.001636]
[1727924285802,0.17471442,61380.0,61379.0,0.001636]
[1727924286032,0.17471442,61380.0,61379.0,0.015636]
[1727924286255,0.17471442,61380.0,61379.0,0.001636]
[1727924286476,0.17471442,61380.0,61379.0,0.015636]
[1727924287168,0.17471442,61380.0,61379.0,0.029636]
[1727924287169,0.01179542,61380.0,61379.0,0.029636]
[1727924287383,0.17471442,61380.0,61379.0,0.029636]
[1727924287602,0.01179542,61380.0,61379.0,0.029636]
[1727924288078,0.17471442,61380.0,61379.0,0.029636]
[1727924288731,0.01179542,61380.0,61379.0,0.029636]
[1727924289151,0.17471442,61380.0,61379.0,0.029636]
[1727924290380,0.01179542,61380.0,61379.0,0.029636]
[1727924290625,0.01179542,61380.0,61379.0,0.40421617]
[1727924290873,0.02553958,61381.0,61379.0,0.32279417]
[1727924291119,0.02553958,61381.0,61380.0,0.195599]
[1727924292276,0.02635758,61381.0,61380.0,0.195599]
[1727924292750,0.02635758,61381.0,61380.0,0.04668]
[1727924292984,0.18927358,61381.0,61380.0,0.014]
[1727924294569,0.19516497,61381.0,61380.0,0.008]
[1727924295030,0.03224897,61381.0,61380.0,0.005]
[1727924295273,0.19516497,61381.0,61380.0,0.005]
[1727924295508,0.37784314,61381.0,61380.0,0.012]
[1727924296864,0.37784314,61381.0,61380.0,0.005]
[1727924297128,0.37784314,61381.0,61380.0,0.008]
[1727924297356,0.42659873,61381.0,61380.0,0.008]
[1727924297622,0.47242096,61381.0,61380.0,0.008]
[1727924297838,0.42567014,61381.0,61380.0,0.003]
[1727924298308,0.300219,61380.0,61379.0,0.001636]
[1727924298539,0.41443717,61375.0,61374.0,0.24668399]
[1727924298984,0.42031363,61375.0,61374.0,0.001636]
[1727924299209,0.42295524,61375.0,61374.0,0.001636]
[1727924299428,0.5177834,61375.0,61374.0,0.001636]
[1727924299686,0.5197834,61375.0,61374.0,0.001636]
[1727924299912,0.64029459,61375.0,61374.0,0.001636]
[1727924300149,0.32675117,61370.0,61369.0,0.001636]
[1727924300621,0.32675117,61370.0,61365.0,0.001636]
[1727924300622,0.1,61369.0,61365.0,0.001636]
[1727924300881,0.1,61365.0,61360.0,0.001636]
[1727924301124,0.48947417,61361.0,61360.0,0.001636]
[1727924301580,0.49683146,61361.0,61360.0,0.001636]
[1727924302308,0.29610417,61350.0,61349.0,0.24504799]
[1727924302775,0.163001,61349.0,61340.0,0.24504799]
[1727924302999,0.290401,61349.0,61340.0,0.24504799]
[1727924303228,0.290401,61349.0,61333.0,0.24504799]
[1727924303229,0.163041,61334.0,61333.0,0.24504799]
[1727924303466,0.41454617,61334.0,61333.0,0.24504799]
[1727924303718,0.45772832,61334.0,61333.0,0.24504799]
[1727924303978,0.26306,61327.0,61323.0,0.001634]
[1727924304218,0.39616517,61327.0,61323.0,0.001634]
[1727924304449,0.40174432,61327.0,61323.0,0.001634]
[1727924304676,0.40174432,61327.0,61326.0,0.00112102]
[1727924304907,0.42731422,61327.0,61326.0,0.00112102]
[1727924305369,0.44131422,61327.0,61326.0,0.00112102]
[1727924305616,0.29618617,61319.0,61318.0,0.24280301]
[1727924306089,0.30174659,61319.0,61318.0,0.24280301]
[1727924306305,0.163084,61318.0,61317.0,0.001636]
[1727924306768,0.16865098,61318.0,61317.0,0.001636]
[1727924308372,0.17265098,61318.0,61317.0,0.001636]
[1727924309828,0.17365098,61318.0,61317.0,0.001636]
[1727924310534,0.16865098,61318.0,61317.0,0.001636]
[1727924310992,0.17365098,61318.0,61317.0,0.001636]
[1727924311952,0.01056698,61318.0,61317.0,0.083036]
[1727924312196,0.01056698,61318.0,61317.0,0.246122]
[1727924312946,0.004,61318.0,61317.0,0.246122]
[1727924313890,0.001,61318.0,61317.0,0.246122]
[1727924314382,0.001,61318.0,61317.0,0.49116999]
[1727924314610,0.002,61318.0,61317.0,0.246122]
[1727924314846,0.001,61318.0,61317.0,0.6543567]
[1727924315084,0.001,61318.0,61317.0,0.40930871]
[1727924315321,0.002,61318.0,61317.0,0.44198871]
[1727924315547,0.002,61318.0,61317.0,0.56298871]
[1727924316016,0.001,61318.0,61317.0,0.56298871]
[1727924316317,0.001,61318.0,61317.0,0.56098871]
[1727924316539,0.002,61318.0,61317.0,0.66598871]
[1727924317001,0.001,61318.0,61317.0,0.66598871]
[1727924317728,0.002,61318.0,61317.0,0.67098871]
[1727924317952,0.002638,61318.0,61317.0,0.66598871]
[1727924318181,0.003638,61318.0,61317.0,0.67098871]
[1727924318625,0.003638,61318.0,61317.0,0.67298871]
[1727924319099,0.003638,61318.0,61317.0,0.6751679]
[1727924319557,0.003638,61318.0,61317.0,0.6771679]
[1727924320012,0.0493511,61331.0,61330.0,0.345752]
[1727924320498,0.326063,61338.0,61330.0,0.1827]
[1727924320721,0.163041,61335.0,61330.0,0.1827]
[1727924320941,0.163041,61335.0,61330.0,0.34575]
[1727924321393,0.002,61331.0,61330.0,0.1957]
[1727924321633,0.164049,61331.0,61330.0,0.1907]
[1727924321874,0.164049,61331.0,61330.0,0.011]
[1727924322354,0.18961209,61331.0,61330.0,0.011]
[1727924322592,0.18861209,61331.0,61330.0,0.003]
[1727924323315,0.18861209,61331.0,61330.0,0.009]
[1727924323773,0.18861209,61331.0,61330.0,0.003]
[1727924324051,0.19535827,61331.0,61330.0,0.007]
[1727924324277,0.19635827,61331.0,61330.0,0.014]
[1727924324514,0.03130927,61331.0,61321.0,0.24504799]
[1727924324774,0.163071,61323.0,61321.0,0.24504799]
[1727924325206,0.00573101,61322.0,61321.0,0.24504799]
[1727924325420,0.00573101,61322.0,61319.0,0.16308]
[1727924325643,0.163068,61324.0,61319.0,0.16308]
[1727924325865,0.01272257,61321.0,61319.0,0.16308]
[1727924326085,0.163068,61324.0,61321.0,0.004]
[1727924326509,0.32613,61326.0,61321.0,0.004]
[1727924326719,0.326132,61325.0,61321.0,0.004]
[1727924326934,0.163071,61323.0,61321.0,0.004]
[1727924327208,0.163071,61323.0,61319.0,0.16308]
[1727924327660,0.163071,61323.0,61321.0,0.004]
[1727924327661,0.00674084,61322.0,61321.0,0.004]
[1727924327911,0.00574084,61322.0,61321.0,0.004]
[1727924328336,0.00574084,61322.0,61321.0,0.008]
[1727924328560,0.00574084,61322.0,61321.0,0.004]
[1727924329217,0.01271725,61322.0,61321.0,0.004]
[1727924329677,0.01271725,61322.0,61319.0,0.004]
[1727924329911,0.01371725,61322.0,61321.0,0.005]
[1727924330654,0.01371725,61322.0,61319.0,0.004]
[1727924330655,0.20135517,61322.0,61319.0,0.004]
[1727924330885,0.03928117,61322.0,61321.0,0.005]
[1727924331101,0.03928117,61322.0,61321.0,0.01]
[1727924331326,0.03928117,61322.0,61321.0,0.005]